[Event "I Liga Centralne Srbije"]
[Site "Bajina Bašta, Serbia"]
[Date "2020.10.15"]
[Round "9.5"]
[White "Todorovic, Goran M"]
[Black "Topalov, Aleksandar"]
[Result "1-0"]
[ECO "C05"]
[WhiteElo "2404"]
[BlackElo "2228"]
[Annotator "Knez"]
[PlyCount "123"]
[EventDate "2020.??.??"]
[TimeControl "90"]
[WhiteClock "0:04:47"]
[BlackClock "0:02:35"]

1. e4 {[%emt 0:00:00]} e6 {[%emt 0:00:00]} 2. d4 {[%emt 0:00:00]} d5 {[%emt 0:
00:00]} 3. Nd2 {[%emt 0:00:00]} Nf6 {[%emt 0:00:00]} 4. e5 {[%emt 0:00:00]} Ng8
{[%emt 0:00:00]} 5. c3 {[%emt 0:00:00]} Qd7 {[%emt 0:00:00]} 6. Ngf3 {[%emt 0:
00:00]} b6 {[%emt 0:00:00]} 7. a4 {[%emt 0:00:00]} Ba6 {[%emt 0:00:00]} 8. Bxa6
{[%emt 0:00:00]} Nxa6 {[%emt 0:00:00]} 9. Qe2 {[%emt 0:00:00]} Nb8 {[%emt 0:00:
00]} 10. a5 {[%emt 0:00:00]} a6 {[%emt 0:00:00]} 11. axb6 {[%emt 0:00:00]} cxb6
{[%emt 0:00:00]} 12. O-O {[%emt 0:00:00]} Ne7 {[%emt 0:00:00]} 13. b4 {[%emt 0:
00:00]} Nec6 {[%emt 0:00:00]} 14. Nb3 {[%emt 0:00:00]} Ra7 {[%emt 0:00:00]} 15.
Ne1 {[%emt 0:00:00]} Be7 {[%emt 0:00:00]} 16. Qg4 {[%emt 0:00:00]} Bf8 {
[%emt 0:00:00]} 17. Nd3 {[%emt 0:00:00]} h5 {[%emt 0:00:00]} 18. Qe2 {[%emt 0:
00:00]} Be7 {[%emt 0:00:00]} 19. Bd2 {[%emt 0:00:00]} Rc7 {[%emt 0:00:00]} 20.
Rfc1 {[%emt 0:00:00]} Na7 {[%emt 0:00:00]} 21. Nf4 {[%emt 0:00:00]} Qb5 {
[%emt 0:00:00]} 22. Qf3 {[%emt 0:00:00]} g6 {[%emt 0:00:00]} 23. Rab1 {[%emt 0:
00:00]} Qd7 {[%emt 0:00:00]} 24. Nh3 {[%emt 0:00:00]} Nb5 {[%emt 0:00:00]} 25.
Bg5 {[%emt 0:00:00]} Bxg5 {[%emt 0:00:00]} 26. Nxg5 {[%emt 0:00:00]} Qe7 {
[%emt 0:00:00]} 27. h4 {[%emt 0:00:00]} Kf8 {[%emt 0:00:00]} 28. Nd2 {[%emt 0:
00:00]} Kg7 {[%emt 0:00:00]} 29. Nf1 {[%emt 0:00:00]} Na3 {[%emt 0:00:00]} 30.
Ra1 {[%emt 0:00:00]} Nb5 {[%emt 0:00:00]} 31. Ng3 {[%emt 0:00:00]} Rc4 {
[%emt 0:00:00]} 32. Ne2 {[%emt 0:00:00]} Na7 {[%emt 0:00:00]} 33. Nf4 {[%emt 0:
00:00]} Nb5 {[%emt 0:00:00]} 34. Qg3 {[%emt 0:00:00]} Rh6 {[%emt 0:00:00]} 35.
Kh2 {[%emt 0:00:00]} Qd7 {[%emt 0:00:00]} 36. Qe3 {[%emt 0:00:00]} Rh8 {
[%emt 0:00:00]} 37. Qg3 {[%emt 0:00:00]} Rh6 {[%emt 0:00:00]} 38. Qh3 {[%emt 0:
00:00]} Qe7 {[%emt 0:00:00]} 39. Ngxe6+ {[%emt 0:00:00]} fxe6 {[%emt 0:00:00]}
40. Nxe6+ {[%emt 0:00:00]} Kg8 {[%emt 0:00:00]} 41. Nf4 {[%emt 0:00:00]} Nc7 {
[%emt 0:00:00]} 42. Re1 {[%emt 0:00:00]} Nd7 {[%emt 0:00:00]} 43. Kg1 {[%emt 0:
00:00]} Kg7 {[%emt 0:00:00]} 44. Re3 {[%emt 0:00:00]} Nf8 {[%emt 0:00:00]} 45.
e6 {[%emt 0:00:00]} Rc6 {[%emt 0:00:00]} 46. Rae1 {[%emt 0:00:00]} Rd6 {
[%emt 0:00:00]} 47. Re5 {[%emt 0:00:00]} Nh7 {[%emt 0:00:00]} 48. Qg3 {[%emt 0:
00:00]} Nf6 {[%emt 0:00:00]} 49. Rg5 {[%emt 0:00:00]} Nce8 {[%emt 0:00:00]} 50.
Nxg6 {[%emt 0:00:00]} Rxg6 {[%emt 0:00:00]} 51. Rxg6+ {[%emt 0:00:00]} Kh8 {
[%emt 0:00:00]} 52. Qg5 {[%emt 0:00:00]} Qf8 {[%emt 0:00:00]} 53. e7 {[%emt 0:
00:00]} Qf7 {[%emt 0:00:00]} 54. Rh6+ {[%emt 0:00:00]} Nh7 {[%emt 0:00:00]} 55.
Rxh5 {[%emt 0:00:00]} Rg6 {[%emt 0:00:00]} 56. Qe5+ {[%emt 0:00:00]} Kg8 {
[%emt 0:00:00]} 57. Qxd5 {[%emt 0:00:00]} Nhf6 {[%emt 0:00:00]} 58. Rh8+ {
[%emt 0:00:00]} Kg7 {[%emt 0:00:00]} 59. Qxf7+ {[%emt 0:00:00]} Kxf7 {[%emt 0:
00:00]} 60. h5 {[%emt 0:00:00]} Rg5 {[%emt 0:00:00]} 61. Rf8+ {[%emt 0:00:00]}
Kg7 {[%emt 0:00:00]} 62. h6+ {[%emt 0:00:00]} 1-0

[Event "I Liga Centralne Srbije"]
[Site "Bajina Bašta, Serbia"]
[Date "2020.10.15"]
[Round "9.11"]
[White "Dimitrijevic, Nenad"]
[Black "Radovanovic, Jovica"]
[Result "1-0"]
[ECO "A48"]
[WhiteElo "2142"]
[BlackElo "2303"]
[Annotator "Knez"]
[PlyCount "55"]
[EventDate "2020.??.??"]
[TimeControl "90"]

1. d4 {[%emt 0:32:23]} Nf6 {[%emt 0:00:08]} 2. Nf3 {[%emt 0:00:04]} g6 {
[%emt 0:00:17]} 3. c3 {[%emt 0:00:41]} Bg7 {[%emt 0:00:08]} 4. Bg5 {[%emt 0:00:
08]} d6 {[%emt 0:05:45]} 5. Nbd2 {[%emt 0:00:17]} O-O {[%emt 0:00:25]} 6. e4 {
[%emt 0:01:00]} Nbd7 {[%emt 0:00:29]} 7. e5 {[%emt 0:05:12]} dxe5 {[%emt 0:02:
25]} 8. dxe5 {[%emt 0:00:03]} Ng4 {[%emt 0:04:31]} 9. e6 {[%emt 0:01:32]} fxe6
{[%emt 0:00:45]} 10. h3 {[%emt 0:05:00]} Nge5 {[%emt 0:01:44]} 11. Be2 {
[%emt 0:00:55]} Nf7 {[%emt 0:02:10]} 12. Be3 {[%emt 0:02:15]} e5 {[%emt 0:02:
41]} 13. Qb3 {[%emt 0:01:58]} Kh8 {[%emt 0:04:12]} 14. Ne4 {[%emt 0:09:12]} Nb6
{[%emt 0:15:53]} 15. Rd1 {[%emt 0:05:55]} Qe8 {[%emt 0:00:35]} 16. Nc5 {
[%emt 0:06:10]} c6 {[%emt 0:08:09]} 17. c4 {[%emt 0:04:05]} h6 {[%emt 0:17:52]}
18. a4 {[%emt 0:04:42]} Rb8 {[%emt 0:03:47]} 19. a5 {[%emt 0:00:36]} Na8 {
[%emt 0:05:06]} 20. Na6 {[%emt 0:01:02]} Bxh3 {[%emt 0:01:09]} 21. Nxb8 {
[%emt 0:00:45]} Bxg2 {[%emt 0:00:04]} 22. Rg1 {[%emt 0:00:23]} Bxf3 {[%emt 0:
00:06]} 23. Bxf3 {[%emt 0:00:15]} Qxb8 {[%emt 0:03:37]} 24. Rxg6 {[%emt 0:02:
36]} e4 {[%emt 0:04:13]} 25. Bxe4 {[%emt 0:02:32]} Qe5 {[%emt 0:00:04]} 26. Qc3
{[%emt 0:10:43]} Qxc3+ {[%emt 0:02:49]} 27. bxc3 {[%emt 0:00:03]} Ne5 {[%emt 0:
09:57]} 28. Rxg7 {[%emt 0:01:54]} 1-0

[Event "I Liga Centralne Srbije"]
[Site "Bajina Bašta, Serbia"]
[Date "2020.10.15"]
[Round "9.5"]
[White "Ilic, Dragan"]
[Black "Vujcic, Milena"]
[Result "0-1"]
[ECO "E76"]
[WhiteElo "2291"]
[BlackElo "2059"]
[Annotator "Knez"]
[PlyCount "83"]
[EventDate "2020.??.??"]
[TimeControl "90"]
[WhiteClock "0:05:42"]

1. d4 {[%emt 0:00:00]} Nf6 {[%emt 0:00:00]} 2. c4 {[%emt 0:00:00]} g6 {[%emt 0:
00:00]} 3. Nc3 {[%emt 0:00:00]} Bg7 {[%emt 0:00:00]} 4. e4 {[%emt 0:00:00]} d6
{[%emt 0:00:00]} 5. f4 {[%emt 0:00:00]} O-O {[%emt 0:00:00]} 6. Nf3 {[%emt 0:
00:00]} c5 {[%emt 0:00:00]} 7. d5 {[%emt 0:00:00]} e6 {[%emt 0:00:00]} 8. dxe6
{[%emt 0:00:00]} fxe6 {[%emt 0:00:00]} 9. Bd3 {[%emt 0:00:00]} Nc6 {[%emt 0:00:
00]} 10. O-O {[%emt 0:00:00]} Nd4 {[%emt 0:00:00]} 11. Kh1 {[%emt 0:00:00]} Bd7
{[%emt 0:00:00]} 12. Bd2 {[%emt 0:00:00]} Nh5 {[%emt 0:00:00]} 13. Nxd4 {
[%emt 0:00:00]} cxd4 {[%emt 0:00:00]} 14. Nb5 {[%emt 0:00:00]} Qh4 {[%emt 0:00:
00]} 15. Qe1 {[%emt 0:00:00]} Qxe1 {[%emt 0:00:00]} 16. Raxe1 {[%emt 0:00:00]}
Bxb5 {[%emt 0:00:00]} 17. cxb5 {[%emt 0:00:00]} Bh6 {[%emt 0:00:00]} 18. g3 {
[%emt 0:00:00]} e5 {[%emt 0:00:00]} 19. Bb4 {[%emt 0:00:00]} exf4 {[%emt 0:00:
00]} 20. Bxd6 {[%emt 0:00:00]} Rfd8 {[%emt 0:00:00]} 21. Bxf4 {[%emt 0:00:00]}
Nxf4 {[%emt 0:00:00]} 22. gxf4 {[%emt 0:00:53]} Rf8 {[%emt 0:01:44]} 23. f5 {
[%emt 0:00:00]} gxf5 {[%emt 0:00:00]} 24. exf5 {[%emt 0:00:00]} Be3 {[%emt 0:
00:00]} 25. f6 {[%emt 0:00:00]} Rac8 {[%emt 0:00:00]} 26. Re2 {[%emt 0:00:00]}
Kf7 {[%emt 0:00:00]} 27. Rc2 {[%emt 0:00:00]} Rxc2 {[%emt 0:00:00]} 28. Bxc2 {
[%emt 0:00:00]} Ke6 {[%emt 0:00:00]} 29. f7 {[%emt 0:00:00]} Kd5 {[%emt 0:00:
00]} 30. Bd3 {[%emt 0:00:00]} Kc5 {[%emt 0:00:00]} 31. Kg2 {[%emt 0:00:00]} Bh6
{[%emt 0:00:00]} 32. a3 {[%emt 0:00:00]} Kd5 {[%emt 0:00:00]} 33. Kg3 {[%emt 0:
00:00]} Be3 {[%emt 0:00:00]} 34. Kg4 {[%emt 0:00:00]} Ke6 {[%emt 0:00:00]} 35.
Bxh7 {[%emt 0:00:00]} Ke7 {[%emt 0:00:00]} 36. Bg6 {[%emt 0:00:00]} Rc8 {
[%emt 0:00:00]} 37. h4 {[%emt 0:00:00]} Kf8 {[%emt 0:00:00]} 38. Rf5 {[%emt 0:
00:00]} Kg7 {[%emt 0:00:00]} 39. Re5 {[%emt 0:00:00]} Rf8 {[%emt 0:00:00]} 40.
h5 {[%emt 0:00:00]} Bc1 {[%emt 0:00:00]} 41. Re8 {[%emt 0:00:37]} d3 {[%emt 0:
00:00]} 42. Kf3 {[%emt 0:00:00]} 0-1

[Event "I Liga Centralne Srbije"]
[Site "Bajina Bašta, Serbia"]
[Date "2020.10.15"]
[Round "9.6"]
[White "Delchev, Aleksander"]
[Black "Ristic, Nebojsa B"]
[Result "1-0"]
[ECO "E90"]
[WhiteElo "2548"]
[BlackElo "2312"]
[Annotator "Knez"]
[PlyCount "61"]
[EventDate "2020.??.??"]
[TimeControl "90"]
[WhiteClock "0:10:57"]
[BlackClock "0:04:43"]

1. Nf3 {[%emt 0:00:00]} Nf6 {[%emt 0:00:00]} 2. c4 {[%emt 0:00:00]} g6 {
[%emt 0:00:00]} 3. Nc3 {[%emt 0:00:00]} Bg7 {[%emt 0:00:00]} 4. e4 {[%emt 0:00:
00]} d6 {[%emt 0:00:00]} 5. d4 {[%emt 0:00:00]} O-O {[%emt 0:00:00]} 6. h3 {
[%emt 0:00:00]} e5 {[%emt 0:00:00]} 7. d5 {[%emt 0:00:00]} a5 {[%emt 0:00:00]}
8. g4 {[%emt 0:00:00]} Na6 {[%emt 0:00:00]} 9. Be3 {[%emt 0:00:00]} Nd7 {
[%emt 0:00:00]} 10. Rg1 {[%emt 0:00:00]} Kh8 {[%emt 0:00:00]} 11. Be2 {[%emt 0:
00:00]} Ndc5 {[%emt 0:00:00]} 12. Qd2 {[%emt 0:00:00]} f5 {[%emt 0:00:00]} 13.
gxf5 {[%emt 0:00:00]} gxf5 {[%emt 0:00:00]} 14. Bg5 {[%emt 0:00:00]} Bf6 {
[%emt 0:00:00]} 15. Bh6 {[%emt 0:00:00]} fxe4 {[%emt 0:00:00]} 16. Ng5 {
[%emt 0:00:00]} Bf5 {[%emt 0:00:00]} 17. Bxf8 {[%emt 0:00:00]} Qxf8 {[%emt 0:
00:00]} 18. Qe3 {[%emt 0:00:00]} Nb4 {[%emt 0:00:00]} 19. Kd2 {[%emt 0:00:00]}
Qe7 {[%emt 0:00:00]} 20. h4 {[%emt 0:00:00]} c6 {[%emt 0:00:00]} 21. Bh5 {
[%emt 0:00:00]} Rf8 {[%emt 0:00:00]} 22. Rg3 {[%emt 0:00:00]} Nbd3 {[%emt 0:00:
00]} 23. Rag1 {[%emt 0:00:00]} Bxg5 {[%emt 0:00:00]} 24. Rxg5 {[%emt 0:00:00]}
Nf4 {[%emt 0:00:00]} 25. Qg3 {[%emt 0:00:00]} Bg6 {[%emt 0:00:00]} 26. Bxg6 {
[%emt 0:00:00]} hxg6 {[%emt 0:00:00]} 27. h5 {[%emt 0:00:00]} Nxh5 {[%emt 0:00:
00]} 28. Qh4 {[%emt 0:00:00]} Qf7 {[%emt 0:00:00]} 29. Rxg6 {[%emt 0:00:00]}
Qxf2+ {[%emt 0:00:00]} 30. Ne2 {[%emt 0:00:00]} e3+ {[%emt 0:00:00]} 31. Kd1 {
[%emt 0:00:00]} 1-0

[Event "I Liga Centralne Srbije"]
[Site "Bajina Bašta, Serbia"]
[Date "2020.10.15"]
[Round "9.6"]
[White "Spasic, Petar"]
[Black "Radovanovic, Mihajlo"]
[Result "0-1"]
[ECO "E67"]
[WhiteElo "2251"]
[BlackElo "2457"]
[Annotator "Knez"]
[PlyCount "62"]
[EventDate "2020.??.??"]
[TimeControl "90"]
[WhiteClock "0:51:27"]
[BlackClock "0:30:27"]

1. Nf3 {[%emt 0:00:00]} g6 {[%emt 0:00:00]} 2. c4 {[%emt 0:00:00]} Bg7 {
[%emt 0:00:00]} 3. Nc3 {[%emt 0:00:00]} d6 {[%emt 0:00:00]} 4. g3 {[%emt 0:00:
00]} e5 {[%emt 0:00:00]} 5. d4 {[%emt 0:00:00]} Nd7 {[%emt 0:00:00]} 6. Bg2 {
[%emt 0:00:00]} Ngf6 {[%emt 0:00:00]} 7. O-O {[%emt 0:00:00]} O-O {[%emt 0:00:
00]} 8. b3 {[%emt 0:00:00]} Re8 {[%emt 0:00:00]} 9. dxe5 {[%emt 0:00:00]} dxe5
{[%emt 0:00:00]} 10. Ba3 {[%emt 0:00:00]} c6 {[%emt 0:00:00]} 11. Qc2 {[%emt 0:
00:00]} e4 {[%emt 0:00:00]} 12. Nd4 {[%emt 0:00:00]} e3 {[%emt 0:00:00]} 13. f4
{[%emt 0:00:00]} Ng4 {[%emt 0:00:00]} 14. Rad1 {[%emt 0:00:00]} Nf2 {[%emt 0:
00:00]} 15. Rxf2 {[%emt 0:00:00]} exf2+ {[%emt 0:00:00]} 16. Kxf2 {[%emt 0:00:
00]} Qa5 {[%emt 0:00:00]} 17. Bd6 {[%emt 0:00:00]} Nf6 {[%emt 0:00:00]} 18. Bf3
{[%emt 0:00:00]} Ng4+ {[%emt 0:00:00]} 19. Bxg4 {[%emt 0:00:00]} Bxg4 {[%emt 0:
00:00]} 20. c5 {[%emt 0:00:00]} b6 {[%emt 0:00:00]} 21. Ne4 {[%emt 0:00:00]}
bxc5 {[%emt 0:00:00]} 22. Bxc5 {[%emt 0:00:00]} Rxe4 {[%emt 0:00:00]} 23. b4 {
[%emt 0:00:00]} Qxc5 {[%emt 0:00:00]} 24. Qxc5 {[%emt 0:00:00]} Rd8 {[%emt 0:
00:00]} 25. Qg5 {[%emt 0:00:00]} Bxd4+ {[%emt 0:00:00]} 26. Rxd4 {[%emt 0:00:
00]} Rxe2+ {[%emt 0:00:00]} 27. Kf1 {[%emt 0:00:00]} Rxd4 {[%emt 0:00:00]} 28.
Qxg4 {[%emt 0:00:00]} Rxa2 {[%emt 0:00:00]} 29. Ke1 {[%emt 0:00:00]} Rxb4 {
[%emt 0:00:00]} 30. Qd1 {[%emt 0:00:00]} Rxh2 {[%emt 0:00:00]} 31. Qd3 {
[%emt 0:00:00]} Rb1+ {[%emt 0:00:00]} 0-1

[Event "I Liga Centralne Srbije"]
[Site "Bajina Bašta, Serbia"]
[Date "2020.10.15"]
[Round "9.6"]
[White "Radovic, Janko"]
[Black "Djordjevic, Miroslav"]
[Result "1-0"]
[ECO "B12"]
[WhiteElo "2433"]
[BlackElo "1885"]
[Annotator "Knez"]
[PlyCount "51"]
[EventDate "2020.??.??"]
[TimeControl "90"]
[WhiteClock "0:28:21"]
[BlackClock "0:31:20"]

1. e4 {[%emt 0:00:00]} c6 {[%emt 0:00:00]} 2. d4 {[%emt 0:00:00]} d5 {[%emt 0:
00:00]} 3. e5 {[%emt 0:00:00]} Bf5 {[%emt 0:00:00]} 4. h4 {[%emt 0:00:00]} h6 {
[%emt 0:00:00]} 5. g4 {[%emt 0:00:00]} Bg6 {[%emt 0:00:00]} 6. h5 {[%emt 0:00:
00]} Be4 {[%emt 0:00:00]} 7. f3 {[%emt 0:00:00]} Bh7 {[%emt 0:00:00]} 8. e6 {
[%emt 0:00:00]} fxe6 {[%emt 0:00:00]} 9. Bd3 {[%emt 0:00:00]} Bxd3 {[%emt 0:00:
00]} 10. Qxd3 {[%emt 0:00:00]} Qd6 {[%emt 0:00:00]} 11. Qg6+ {[%emt 0:00:00]}
Kd8 {[%emt 0:00:00]} 12. f4 {[%emt 0:00:00]} e5 {[%emt 0:00:00]} 13. fxe5 {
[%emt 0:00:00]} Qxg6 {[%emt 0:00:00]} 14. hxg6 {[%emt 0:00:00]} e6 {[%emt 0:00:
00]} 15. Ne2 {[%emt 0:00:00]} c5 {[%emt 0:00:00]} 16. Rf1 {[%emt 0:00:00]} Ne7
{[%emt 0:00:00]} 17. Nf4 {[%emt 0:00:00]} Kd7 {[%emt 0:00:00]} 18. c3 {[%emt 0:
00:00]} cxd4 {[%emt 0:00:00]} 19. cxd4 {[%emt 0:00:00]} Nbc6 {[%emt 0:00:00]}
20. Be3 {[%emt 0:00:00]} h5 {[%emt 0:00:00]} 21. Rh1 {[%emt 0:00:00]} Rh6 {
[%emt 0:00:00]} 22. Nxh5 {[%emt 0:00:00]} Rxg6 {[%emt 0:00:00]} 23. Rg1 {
[%emt 0:00:00]} Nd8 {[%emt 0:00:00]} 24. Nd2 {[%emt 0:00:00]} Nf7 {[%emt 0:00:
00]} 25. Ke2 {[%emt 0:00:00]} Ng8 {[%emt 0:00:00]} 26. Nf3 {[%emt 0:00:00]} 1-0

[Event "I Liga Centralne Srbije"]
[Site "Bajina Bašta, Serbia"]
[Date "2020.10.15"]
[Round "9.6"]
[White "Milic, Slobodan"]
[Black "Radovic, Luka"]
[Result "0-1"]
[ECO "A13"]
[WhiteElo "1888"]
[BlackElo "2334"]
[Annotator "Knez"]
[PlyCount "50"]
[EventDate "2020.??.??"]
[TimeControl "90"]
[WhiteClock "0:25:32"]
[BlackClock "0:00:36"]

1. b3 {[%emt 0:00:00]} d5 {[%emt 0:00:00]} 2. Nf3 {[%emt 0:00:00]} Nf6 {
[%emt 0:00:00]} 3. Bb2 {[%emt 0:00:00]} e6 {[%emt 0:00:00]} 4. e3 {[%emt 0:00:
00]} c5 {[%emt 0:00:00]} 5. c4 {[%emt 0:00:00]} Nc6 {[%emt 0:00:00]} 6. d4 {
[%emt 0:00:00]} cxd4 {[%emt 0:00:00]} 7. exd4 {[%emt 0:00:00]} b6 {[%emt 0:00:
00]} 8. Be2 {[%emt 0:00:00]} Bb7 {[%emt 0:00:00]} 9. O-O {[%emt 0:00:00]} Bd6 {
[%emt 0:00:00]} 10. Nc3 {[%emt 0:00:00]} dxc4 {[%emt 0:24:13]} 11. Bxc4 {
[%emt 0:00:00]} Ne7 {[%emt 0:00:00]} 12. Bb5+ {[%emt 0:00:00]} Kf8 {[%emt 0:00:
00]} 13. Re1 {[%emt 0:00:00]} Ned5 {[%emt 0:00:00]} 14. Ne5 {[%emt 0:00:00]} g6
{[%emt 0:00:00]} 15. Bc6 {[%emt 0:00:00]} Bxc6 {[%emt 0:00:00]} 16. Nxc6 {
[%emt 0:00:00]} Qc7 {[%emt 0:00:00]} 17. Nxd5 {[%emt 0:00:00]} Bxh2+ {[%emt 0:
00:00]} 18. Kh1 {[%emt 0:00:00]} Nxd5 {[%emt 0:00:00]} 19. Ne5 {[%emt 0:00:00]}
Bf4 {[%emt 0:00:00]} 20. Qf3 {[%emt 0:00:00]} Kg7 {[%emt 0:00:00]} 21. Bc1 {
[%emt 0:00:51]} Bxc1 {[%emt 0:00:00]} 22. Raxc1 {[%emt 0:00:00]} Qe7 {[%emt 0:
00:00]} 23. Rc6 {[%emt 0:00:07]} Rac8 {[%emt 0:00:00]} 24. Rxc8 {[%emt 0:00:01]
} Rxc8 {[%emt 0:00:00]} 25. Qe4 {[%emt 0:00:00]} Qf6 {[%emt 0:00:00]} 0-1

[Event "I Liga Centralne Srbije"]
[Site "Bajina Bašta, Serbia"]
[Date "2020.10.15"]
[Round "9.6"]
[White "Zlatanovic, Boroljub"]
[Black "Banjovic, Sasa"]
[Result "1-0"]
[ECO "C01"]
[WhiteElo "2372"]
[BlackElo "2121"]
[Annotator "Knez"]
[PlyCount "81"]
[EventDate "2020.??.??"]
[TimeControl "90"]

1. Nc3 {[%emt 2:45:31]} e6 {[%emt 0:01:29]} 2. e4 {[%emt 0:00:08]} d5 {[%emt 0:
00:05]} 3. exd5 {[%emt 0:00:08]} exd5 {[%emt 0:00:05]} 4. d4 {[%emt 0:00:04]}
Bb4 {[%emt 0:06:26]} 5. Bd3 {[%emt 0:00:55]} Ne7 {[%emt 0:01:45]} 6. Qh5 {
[%emt 0:03:12]} c5 {[%emt 0:04:00]} 7. dxc5 {[%emt 0:06:25]} Qd7 {[%emt 0:05:
07]} 8. Nge2 {[%emt 0:03:51]} Qg4 {[%emt 0:03:02]} 9. Qxg4 {[%emt 0:00:43]}
Bxg4 {[%emt 0:00:02]} 10. f3 {[%emt 0:00:46]} Be6 {[%emt 0:02:19]} 11. Be3 {
[%emt 0:01:09]} Nd7 {[%emt 0:00:16]} 12. Bb5 {[%emt 0:02:16]} Rc8 {[%emt 0:00:
29]} 13. O-O-O {[%emt 0:03:23]} Bxc5 {[%emt 0:00:19]} 14. Bxc5 {[%emt 0:00:31]}
Rxc5 {[%emt 0:00:03]} 15. Nd4 {[%emt 0:00:26]} a6 {[%emt 0:00:35]} 16. Bxd7+ {
[%emt 0:00:33]} Kxd7 {[%emt 0:00:40]} 17. Rhe1 {[%emt 0:01:15]} b5 {[%emt 0:00:
47]} 18. Nce2 {[%emt 0:03:36]} Nf5 {[%emt 0:03:13]} 19. Nxf5 {[%emt 0:05:12]}
Bxf5 {[%emt 0:00:06]} 20. Nd4 {[%emt 0:00:07]} Be6 {[%emt 0:00:09]} 21. Re3 {
[%emt 0:00:19]} h5 {[%emt 0:01:27]} 22. h4 {[%emt 0:03:51]} Rcc8 {[%emt 0:01:
45]} 23. Kd2 {[%emt 0:04:06]} g6 {[%emt 0:01:08]} 24. Rde1 {[%emt 0:00:16]}
Rhe8 {[%emt 0:00:23]} 25. Ra3 {[%emt 0:01:22]} Ra8 {[%emt 0:00:15]} 26. Rc3 {
[%emt 0:00:25]} Rac8 {[%emt 0:00:15]} 27. Rxc8 {[%emt 0:03:19]} Rxc8 {[%emt 0:
00:36]} 28. b3 {[%emt 0:00:21]} Kd6 {[%emt 0:00:27]} 29. Re3 {[%emt 0:00:42]}
Bd7 {[%emt 0:00:43]} 30. Rc3 {[%emt 0:00:48]} Re8 {[%emt 0:07:56]} 31. Re3 {
[%emt 0:00:15]} Rc8 {[%emt 0:00:14]} 32. b4 {[%emt 0:01:58]} f6 {[%emt 0:00:15]
} 33. Ra3 {[%emt 0:01:11]} Ra8 {[%emt 0:00:09]} 34. Nb3 {[%emt 0:02:45]} g5 {
[%emt 0:00:42]} 35. g3 {[%emt 0:01:13]} gxh4 {[%emt 0:02:13]} 36. gxh4 {
[%emt 0:00:23]} Bc8 {[%emt 0:02:45]} 37. Ke3 {[%emt 0:03:24]} Ke5 {[%emt 0:03:
00]} 38. Nd4 {[%emt 0:01:18]} Bb7 {[%emt 0:00:25]} 39. Rc3 {[%emt 0:02:15]} Rc8
{[%emt 0:01:02]} 40. f4+ {[%emt 0:01:31]} Kd6 {[%emt 0:00:03]} 41. Nf5+ {
[%emt 0:00:11]} 1-0

[Event "I Liga Centralne Srbije"]
[Site "Bajina Bašta, Serbia"]
[Date "2020.10.15"]
[Round "9.6"]
[White "Dimitrijevic, Zoran"]
[Black "Micic, Aleksa"]
[Result "1/2-1/2"]
[ECO "D94"]
[WhiteElo "2088"]
[BlackElo "2060"]
[Annotator "Knez"]
[PlyCount "60"]
[EventDate "2020.??.??"]
[TimeControl "90"]
[WhiteClock "0:27:57"]
[BlackClock "1:19:15"]

1. Nf3 {[%emt 0:00:00]} Nf6 {[%emt 0:00:00]} 2. d4 {[%emt 0:00:00]} g6 {
[%emt 0:00:00]} 3. c4 {[%emt 0:00:00]} Bg7 {[%emt 0:00:00]} 4. Nc3 {[%emt 0:00:
00]} d5 {[%emt 0:00:00]} 5. e3 {[%emt 0:00:00]} O-O {[%emt 0:00:00]} 6. cxd5 {
[%emt 0:00:00]} Nxd5 {[%emt 0:00:00]} 7. Bc4 {[%emt 0:00:00]} Nxc3 {[%emt 0:00:
00]} 8. bxc3 {[%emt 0:00:00]} b6 {[%emt 0:00:00]} 9. O-O {[%emt 0:00:00]} Bb7 {
[%emt 0:00:00]} 10. a4 {[%emt 0:00:00]} Nd7 {[%emt 0:00:00]} 11. a5 {[%emt 0:
00:34]} a6 {[%emt 0:00:00]} 12. Re1 {[%emt 0:00:00]} b5 {[%emt 0:00:00]} 13.
Bf1 {[%emt 0:00:00]} e5 {[%emt 0:00:00]} 14. Bb2 {[%emt 0:00:00]} c5 {[%emt 0:
00:00]} 15. c4 {[%emt 0:00:00]} e4 {[%emt 0:00:00]} 16. Nd2 {[%emt 0:00:00]}
cxd4 {[%emt 0:00:00]} 17. Bxd4 {[%emt 0:00:00]} Ne5 {[%emt 0:00:00]} 18. cxb5 {
[%emt 0:00:00]} axb5 {[%emt 0:00:00]} 19. Nb3 {[%emt 0:00:00]} Bd5 {[%emt 0:00:
00]} 20. Bxe5 {[%emt 0:00:00]} Bxe5 {[%emt 0:00:00]} 21. Nd4 {[%emt 0:00:00]}
Rxa5 {[%emt 0:00:00]} 22. Rxa5 {[%emt 0:00:00]} Qxa5 {[%emt 0:00:00]} 23. Nxb5
{[%emt 0:00:00]} Be6 {[%emt 0:00:00]} 24. Nd4 {[%emt 0:00:00]} Rd8 {[%emt 0:00:
00]} 25. Qb1 {[%emt 0:00:00]} Bxd4 {[%emt 0:00:00]} 26. exd4 {[%emt 0:00:00]}
Bf5 {[%emt 0:00:00]} 27. g4 {[%emt 0:00:00]} e3 {[%emt 0:00:00]} 28. gxf5 {
[%emt 0:00:00]} exf2+ {[%emt 0:00:00]} 29. Kxf2 {[%emt 0:00:00]} Qd2+ {[%emt 0:
00:00]} 30. Kg1 {[%emt 0:00:00]} Qxd4+ {[%emt 0:00:00]} 1/2-1/2